Cogmind - Beta 14 @@@ ROGUE MODE // 2024.11.09 @ 21:07:41 Player: Shimmyarah Result: Self-destructed Performance ------------- Evolutions (2) 1000 Regions Visited (4) 800 Robots Destroyed (32) 160 Value Destroyed (684) 684 Prototype IDs (4) 80 Alien Tech Used (0) 0 Bonus (0) 0 TOTAL SCORE: 2724 Bonus ------- None Cogmind --------- Core Integrity 315/550 Matter 300/300 Energy 100/100 System Corruption 0% Temperature Cool (0) Movement Core (200) Ox3 Location -8/Materials Parts ------- > --- POWER (2) -------- (None) > --- PROPULSION (3) --- (None) > --- UTILITY (3) ------ Medium Storage Unit Improved Sensor Array Seismic Detector > --- WEAPON (3) ------- (None) > --- INVENTORY (10) --- Ion Engine Light Deuterium Engine Improved Heat Sink Visual Processing Unit Particle Charger ECM Suite Assault Rifle Light Cannon Light Cannon Improved Grenade Launcher Peak State ------------ > --- POWER ------------ Light Nuclear Core > --- PROPULSION ------- Light Treads Light Treads > --- UTILITY ---------- Medium Storage Unit Improved Terrain Scanner Hardlight Generator > --- WEAPON ----------- Particle Cannon Light Cannon Light Cannon > --- INVENTORY -------- Ion Engine Improved Heat Sink Visual Processing Unit Sensor Array ECM Suite Assault Rifle Assault Rifle Light Cannon Light Cannon Mining Laser [Rating: 17] Favorites ----------- Power Ion Engine Engine Ion Engine Power Core Light Nuclear Core Propulsion Light Treads Treads Light Treads Utility Medium Storage Unit Device Seismic Detector Storage Medium Storage Unit Weapon Light Cannon Energy Cannon Particle Cannon Ballistic Gun Assault Rifle Ballistic Cannon Light Cannon Special Weapon Mining Laser Build | -11 -10 -9 -9 -8 ------- Run | Yrd Mat Mat Min Mat Slots Evolved 4 | . . 2 . 2 Power 1 | . . . . 1 Propulsion 1 | . . . . 1 Utility 1 | . . 1 . . Weapon 1 | . . 1 . . Parts Attached 24 | 6 4 10 . 4 Power 2 | 1 . 1 . . Engine 1 | 1 . . . . Core 1 | . . 1 . . Reactor . | . . . . . Propulsion 3 | 2 . 1 . . Treads 3 | 2 . 1 . . Leg . | . . . . . Wheel . | . . . . . Hover . | . . . . . Flight . | . . . . . Utility 8 | 1 2 3 . 2 Device 6 | . 1 3 . 2 Storage 2 | 1 1 . . . Processor . | . . . . . Hackware . | . . . . . Protection . | . . . . . Artifact . | . . . . . Weapon 11 | 2 2 5 . 2 Energy Gun . | . . . . . Energy Cannon 1 | . . 1 . . Ballistic Gun 2 | 2 . . . . Ballistic Cannon 6 | . 2 3 . 1 Launcher . | . . . . . Special Weapon 2 | . . 1 . 1 Impact Weapon . | . . . . . Slashing Weapon . | . . . . . Piercing Weapon . | . . . . . Special Melee Weapon . | . . . . . Unidentified Prototypes . | . . . . . Parts Lost 8 | . . . . 8 Power 1 | . . . . 1 Propulsion 2 | . . . . 2 Utility 1 | . . . . 1 Weapon 4 | . . . . 4 Highest Loss Streak 4 | . . . . 4 To Critical Strikes . | . . . . . Average Slot Usage (%) 91 | . 100 98 100 71 Engine 7 | . 14 10 . . Core 3 | . . . 11 6 Treads 21 | . 28 21 22 15 Device 18 | . 14 22 22 17 Storage 11 | . 14 11 11 9 Energy Cannon 3 | . . 1 11 7 Ballistic Gun 1 | . 8 . . . Ballistic Cannon 21 | . 19 27 22 13 Special Weapon 2 | . . 3 . 2 Peak Build Rating 17 | 6 10 17 15 15 Average Rating 11 | 5 9 12 15 13 On Entrance 9 | . 6 10 15 15 Naked Turns . | . . . . . Heaviest Build 27 | 14 22 27 27 27 Greatest Support 40 | 40 40 40 40 40 Greatest Overweight (x) 4 | . . 1 . 4 Average Overweight (x) . | . . . . . Largest Inventory Capacity 10 | 8 10 10 10 10 Average Capacity 9 | 7 9 10 10 10 Most Carried 10 | 5 10 10 10 10 Average Carried 8 | 1 7 9 10 9 Final Capacity 10 | 8 10 10 10 10 Final Carried 10 | 3 10 10 10 10 Class Distribution -------------------- 58% | Skirmisher 33% | Mutant 4% | Scavenger-Skirmisher 3% | Gunner Dominant Class ---------------- Mutant | -10/Materials Skirmisher | -9/Materials Skirmisher | -9/Mines Skirmisher | -8/Materials Resources | -11 -10 -9 -9 -8 ----------- Run | Yrd Mat Mat Min Mat Matter Collected 947 | 314 168 219 117 129 Remotely . | . . . . . Salvage Created 856 | 131 166 269 132 158 Parts 62 | 8 10 18 13 13 Haulers Intercepted . | . . . . . Recyclers Shooed 3 | . . 1 1 1 Parts Field Recycled . | . . . . . Retrieved Matter . | . . . . . Parts Self-Destructed . | . . . . . Prevented . | . . . . . Kills | -11 -10 -9 -9 -8 ------- Run | Yrd Mat Mat Min Mat Combat Hostiles Destroyed 17 | . 3 6 6 2 Cannons 17 | . 3 6 6 2 Classes Destroyed 10 | 2 3 2 1 2 Worker 1 | . . 1 . . Builder 1 | . . 1 . . Tunneler 3 | 2 . 1 . . Recycler 3 | 1 1 . 1 . Mechanic 1 | . . . . 1 Operator 2 | . 1 . . 1 Watcher 4 | . 1 1 . 2 Swarmer 6 | . . . 6 . Grunt 9 | . 3 6 . . Sentry 2 | . . . . 2 Best Kill Streak 4 | 2 4 4 3 3 Combat Bots Only 3 | . 3 3 3 1 Max Kills in Single Turn 1 | 1 1 1 1 1 Gunslinging . | . . . . . Exploded . | . . . . . Melee . | . . . . . Uniques/NPCs Destroyed . | . . . . . Combat | -11 -10 -9 -9 -8 -------- Run | Yrd Mat Mat Min Mat Hostile Shots Fired 128 | . 5 25 17 81 Missed 28 | . 3 4 1 20 Damage Taken 1260 | . 24 257 116 863 Core 279 | . . 31 13 235 Absorbed by Shields . | . . . . . Regen/Repaired (Parts) 12 | . . 12 . . Core Remaining (%) 96 | 100 100 . 89 . Volleys Fired 86 | 9 16 21 11 29 Largest 3 | 2 2 3 3 3 Hottest 203 | 40 70 138 138 203 Shots Fired 198 | 18 32 51 33 64 Gun 18 | 18 . . . . Cannon 163 | . 32 45 33 53 Launcher . | . . . . . Special 17 | . . 6 . 11 Kinetic 144 | 18 32 41 22 31 Thermal 54 | . . 10 11 33 Explosive . | . . . . . Electromagnetic . | . . . . . Robot Hit Streak 7 | 4 5 4 4 7 Robot Miss Streak 5 | 2 5 2 5 4 Penetration Max . | . . . . . Secondary Targets . | . . . . . Shots Hit Robots 87 | 10 17 23 13 24 Core Hits 38 | 4 5 12 7 10 Critical Kills . | . . . . . Critical Parts Destroyed . | . . . . . Critical Strikes 1 | . 1 . . . Blast 1 | . 1 . . . Melee Attacks . | . . . . . Impact . | . . . . . Slashing . | . . . . . Piercing . | . . . . . Sneak Attacks . | . . . . . Combat Hostiles . | . . . . . Follow-up Attacks . | . . . . . Damage Inflicted 1602 | 126 297 453 261 465 Guns 126 | 126 . . . . Cannons 1370 | . 297 399 261 413 Explosions . | . . . . . Melee . | . . . . . Ramming 34 | . . 30 . 4 Kinetic 1129 | 126 297 359 139 208 Thermal 439 | . . 64 122 253 Explosive . | . . . . . Electromagnetic . | . . . . . Impact . | . . . . . Slashing . | . . . . . Piercing . | . . . . . Highest Corruption . | . . . . . Average Corruption . | . . . . . Corruption Purged . | . . . . . Corruption Blocked . | . . . . . Overload Shots . | . . . . . Overflow Damage 51 | . 38 . 13 . Projectiles 51 | . 38 . 13 . Explosions . | . . . . . Melee . | . . . . . Knockbacks 14 | . 5 4 2 3 Impact . | . . . . . Kinetic 14 | . 5 4 2 3 Secondary . | . . . . . Self-Inflicted Damage 1 | . . . . 1 Shots . | . . . . . Rammed 8 | . . 5 . 3 Targets Rammed 8 | . . 5 . 3 Kicked . | . . . . . Crushed . | . . . . . Highest Temperature 354 | 6 84 327 354 225 Average Temperature 82 | 6 28 88 146 69 Received Heat Transfer 282 | . 12 144 . 126 Effects 1 | . . . 1 . Energy Bleed 1 | . . . 1 . Siege Activations . | . . . . . Robots Corrupted . | . . . . . Combat Hostiles . | . . . . . Parts Fried . | . . . . . Impact Corruptions . | . . . . . Robots Melted . | . . . . . Combat Hostiles . | . . . . . Parts Melted . | . . . . . Heat Transferred 816 | . . 124 222 470 Parts Sabotaged . | . . . . . Parts Stolen . | . . . . . Parts Stripped . | . . . . . Power Chain Reactions . | . . . . . Alert | -11 -10 -9 -9 -8 ------- Run | Yrd Mat Mat Min Mat Peak Influence 258 | 15 126 181 230 258 Initial 91 | . 9 . 70 91 Average 73 | 8 42 40 161 137 Maximum Alert Level 1 | . . . 1 1 Low Security (%) 88 | 100 100 100 88 61 Level 1 11 | . . . 11 38 Level 2 . | . . . . . Level 3 . | . . . . . Level 4 . | . . . . . Level 5 . | . . . . . High Security . | . . . . . Max Security . | . . . . . Squads Dispatched 5 | . 2 2 . 1 Investigation 1 | . 1 . . . Extermination . | . . . . . Reinforcement 4 | . 1 2 . 1 Assault . | . . . . . Garrison . | . . . . . Intercept . | . . . . . Searches Triggered . | . . . . . Construction Impeded . | . . . . . Haulers Reinforced . | . . . . . Active Scanning Responses . | . . . . . Cargo Convoy Interrupts . | . . . . . Stealth | -11 -10 -9 -9 -8 --------- Run | Yrd Mat Mat Min Mat Distress Signals 2 | . 1 1 . . Communications Jammed . | . . . . . Distress Signals . | . . . . . Times Spotted 29 | . 5 10 5 9 Peak Tracking Total 5 | . 3 3 3 5 Tactical Retreats 1 | . . 1 . . Traps | -11 -10 -9 -9 -8 ------- Run | Yrd Mat Mat Min Mat Traps Triggered 1 | . 1 . . . Indirectly . | . . . . . Trap Hack Attempts . | . . . . . Triggered . | . . . . . Disarmed . | . . . . . Reprogrammed . | . . . . . Reused . | . . . . . Traps Extracted . | . . . . . Installed . | . . . . . Triggered . | . . . . . Machines | -11 -10 -9 -9 -8 ---------- Run | Yrd Mat Mat Min Mat Machines Disabled 3 | . 1 . 1 1 Max in Single Turn 1 | . 1 . 1 1 Machines Repaired . | . . . . . Machines Dismantled . | . . . . . Machines Sabotaged . | . . . . . Overloaded Fab Kills . | . . . . . Hacking | -11 -10 -9 -9 -8 --------- Run | Yrd Mat Mat Min Mat Machines Accessed 10 | . 1 6 1 2 Terminals 8 | . 1 4 1 2 Fabricators . | . . . . . Repair Stations 1 | . . 1 . . Recycling Units . | . . . . . Scanalyzers 1 | . . 1 . . Garrison Access . | . . . . . Total Hacks 27 | . 2 14 2 9 Successful 15 | . 1 8 2 4 Failed 11 | . 1 6 . 4 Catastrophic 3 | . . 2 . 1 Database Lockouts 1 | . . . . 1 Manual 7 | . . 6 1 . Terminals 21 | . 2 8 2 9 Fabricators . | . . . . . Repair Stations 2 | . . 2 . . Recycling Units . | . . . . . Scanalyzers 4 | . . 4 . . Garrison Access . | . . . . . Terminal Hacks 10 | . 1 3 2 4 Record 4 | . . . . 4 Prototype ID Bank 2 | . 1 1 . . Alert Level 1 | . . 1 . . Dispatch Records 1 | . . 1 . . Hauler Manifests 1 | . . . 1 . Zone Layout 1 | . . . 1 . Fabricator Hacks . | . . . . . Repair Station Hacks 2 | . . 2 . . Scan Component 1 | . . 1 . . Repair 1 | . . 1 . . Recycling Unit Hacks . | . . . . . Scanalyzer 2 | . . 2 . . Insert Component 1 | . . 1 . . Analyze 1 | . . 1 . . Garrison Access Hacks . | . . . . . Unauthorized Hacks 1 | . . 1 . . Terminals 1 | . . 1 . . Operators 1 | . . 1 . . Fabricators . | . . . . . Repair Stations . | . . . . . Recycling Units . | . . . . . Scanalyzers . | . . . . . Garrison Access . | . . . . . Data Cores Recovered . | . . . . . Used . | . . . . . Hacking Detections 9 | . 1 5 1 2 Full Trace Events 1 | . . . . 1 Feedback Events . | . . . . . Feedback Blocked . | . . . . . Robot Schematics Acquired . | . . . . . Robots Built . | . . . . . Authchips . | . . . . . Time . | . . . . . Total Robot Build Rating . | . . . . . Part Schematics Acquired 1 | . . 1 . . Parts Built . | . . . . . Authchips . | . . . . . Time . | . . . . . Total Part Build Rating . | . . . . . Parts Repaired 1 | . . 1 . . Time 26 | . . 26 . . Parts Recycled . | . . . . . Recycled Matter . | . . . . . Retrieved Matter . | . . . . . Retrieved Components . | . . . . . Parts Scanalyzed 1 | . . 1 . . Part Schematics Acquired 1 | . . 1 . . Parts Damaged . | . . . . . Bothacking | -11 -10 -9 -9 -8 ------------ Run | Yrd Mat Mat Min Mat Used RIF Installer . | . . . . . Robots Hacked . | . . . . . Non-combat . | . . . . . Combat . | . . . . . Robot Hacks Applied . | . . . . . Relay Couplers Released . | . . . . . Fabnet Peak Effective % . | . . . . . Robots Rewired . | . . . . . Allies Hacked . | . . . . . Hacks Repelled . | . . . . . Allies | -11 -10 -9 -9 -8 -------- Run | Yrd Mat Mat Min Mat Total Allies . | . . . . . Largest Group . | . . . . . Highest-Rated Group . | . . . . . Highest-Rated Ally . | . . . . . Total Orders . | . . . . . Ally Attacks . | . . . . . Total Damage . | . . . . . Kills . | . . . . . Allies Corrupted . | . . . . . Allies Melted . | . . . . . Intel | -11 -10 -9 -9 -8 ------- Run | Yrd Mat Mat Min Mat Robot Analysis Total . | . . . . . Derelict Logs Recovered . | . . . . . Drone Launches . | . . . . . Drone Recoveries . | . . . . . Exploration | -11 -10 -9 -9 -8 ------------- Run | Yrd Mat Mat Min Mat Turns Passed 1860 | 124 404 699 124 509 Spaces Moved 928 | 68 214 360 56 230 Core 54 | 23 . . . 31 Treads 874 | 45 214 360 56 199 Legs . | . . . . . Wheels . | . . . . . Hover . | . . . . . Flight . | . . . . . Fastest Speed 50 | 50 160 160 160 160 Average Speed 161 | 122 160 164 160 168 Slowest Speed 250 | 160 160 240 160 250 Overloaded Moves . | . . . . . Propulsion Burnouts . | . . . . . Robots Hopped . | . . . . . Cave-ins Triggered . | . . . . . Exploration Rate (%) 21 | 5 32 26 10 34 Regions Visited 4 Branch Regions 1 Pre-discovered Areas . | . . . . . Known Exits Taken . | . . . . . Unknown Exits Taken 4 | 1 1 1 1 . Scrap Searched . | . . . . . Spaces Dug 10 | . . 5 . 5 Terrain Destroyed 12 | . . 5 . 7 Melee . | . . . . . Projectile 12 | . . 5 . 7 AOE . | . . . . . Terrain Rammed . | . . . . . Walls Destroyed . | . . . . . Machines Disabled . | . . . . . Actions | -11 -10 -9 -9 -8 --------- Run | Yrd Mat Mat Min Mat Total 1085 | 90 243 415 66 271 Wait 7 | . . 7 . . Move 924 | 67 213 359 55 230 Hop . | . . . . . Pick Up 27 | 8 9 7 . 3 Fast Attach 2 | 1 . 1 . . Attach 12 | 5 1 4 . 2 Detach . | . . . . . Swap 10 | . 3 5 . 2 Drop 9 | . 1 6 . 2 Fire 86 | 9 16 21 11 29 Melee . | . . . . . Ram 2 | . . . . 2 Kick . | . . . . . Crush 6 | . . 5 . 1 Escape Stasis . | . . . . . Rewire . | . . . . . Trap . | . . . . . Miscellaneous . | . . . . . Route ------- -11/Scrapyard -10/Materials -9/Materials -9/Mines -8/Materials History --------- Turn | Location | Event 15 | -11/Scrapyard | Discovered new exit (range 15) 125 | -11/Scrapyard | Entered Materials 301 | -10/Materials | Build established: Mutant 489 | -10/Materials | Discovered new exit (range 8) 529 | -10/Materials | Entered another Materials area 529 | -9/Materials | Evolved 2 slots: Utility x1, Weapon x1 720 | -9/Materials | Repaired Lgt. Treads 837 | -9/Materials | Build established: Skirmisher 1156 | -9/Materials | Discovered new exit (range 10) 1228 | -9/Materials | Entered Mines 1330 | -9/Mines | Discovered new exit (range 5) 1352 | -9/Mines | Entered Materials 1352 | -8/Materials | Evolved 2 slots: Power x1, Propulsion x1 1619 | -8/Materials | Central database locked down 1817 | -8/Materials | Lost 4 parts (2n2w) 1861 | -8/Materials | Self-destructed Last Messages --------------- 01751_ Penetrated by Slug. 01752_ R-06 Scavenger collects Lgt. Ion Engine. 01767_ Penetrated by Slug. 01773_ H-55 Commando knocked back. 01777_ Slug penetrates Wall. 01780_ Penetrated by Slug. 01780_ Lgt. Cannon destroyed. 01783_ Lgt. Treads destroyed. 01783_ Particle Cannon destroyed. 01786_ Lgt. Treads destroyed. 01792_ Penetrated by Slug. 01792_ A-02 Transporter destroyed. 01795_ Penetrated by Slug. 01796_ Acquired 47 matter. 01806_ R-06 Scavenger collects Lgt. Treads. 01806_ Slammed into R-06 Scavenger. 01829_ Slug penetrates Door. 01829_ Lgt. Cannon destroyed. 01832_ Penetrated by Slug. 01849_ Slug penetrates Nuclear Reactor. Map ----- +----------------------------------------------------+ | ???????????????????????????????? ?????????????? | | ???????????????????????????????? ??????????????? | | ???????????????????????????????? ??????????????? | | ???????????????????????????????# ??????????????? | | ???????????????????????????????# ??????????????? | | ???????????????????????????????# ???????????????? | | ???????????????????????????????# ???????????????? | | ???????????????????????????????+ ???????????????? | | ???????????????????????????????# ???????????????? | | ???????????????????????????????# #???????????????? | | ???????????????????????????????# ################# | | ???????????????????????????????#%% =!%!!* | | ???????????????????????????????# ######### ####### | | ???????????????????????????????# #???????# #?????? | | ????????????????????????????####"#####???# #?????? | | ????????????????????????????# T #???# #?##### | | ????????????????????????????# """? #???# ## | | ????????????????????????????# """ % #???# ## | | ????????????????????????????# """ #???# ## """ | | ????????????????????????????# !#???# ## """ | | ????????????????????????????# """ [ #???? ?# """ | | ????????????????????????????# """ #???? ?# | | ????????????????????????????# """ =#???? ?# | | ????????????????????????????# ! #???# ?# | | ???????????????????###########+########### ######+ | | ???????????????????#!! @ h | | ???????????????????#!! | | ???????????????????#!! k | | ???????????????????#!! ##################### | | ???????????????????#!! #???????# # ## | | ???????????????????#!! #???????# ! !# ## | | ???????????????????##### #???????# # ## | | ???????????????????????# #???????# # ## | | ???????????????????????# #???????? ! # ## | | ???????????????????????# #???????? # ## | | ???????????????????????# +????????? ?# ## | | ???????????????????????# #????????? ?# ## | | ???????????????????????# #???????###+### ## | | ???????????????????????# ????????# ###+### | | ??????????????????????? ????????# | | ????????????????????????s ????????# T | | ???????????????????????????????????# | | ???????????????????????????????????# =####### | | ???????????????????????????????????###+######### | | ?????????????????????????????????????# """ """ # | | ?????????????????????????????????????# """ """ # | | ??????????????????????????????######## """ """ # | | ????????????????????????????# + # | | ??????????????????????????????######## # | | ?????????????????????????????????????# + | +----------------------------------------------------+ Best States ------------- Heat Dissipation 31 Energy Generation 14 Energy Capacity 250 Matter Stores 300 Matter Capacity 300 Sight Range 16 Robot Scan Range 15 Terrain Scan Range 16 Terrain Scan Density 10 Evasion (%) 50 Recoil Reduction 2 Item Schematics ----------------- Lgt. Cannon | -9/Materials | Scanalyzed Robot Schematics ------------------ None Fabricated ------------ Nothing Alien Tech Used ----------------- None Achievements -------------- None Challenges ------------ None Game ------ Seed EfficiencyAuthchipLattice Manual? 0 Play Time 00:48:48 Cumulative 23.1 hours Start 2024.11.09 @ 20:02:45 End 2024.11.09 @ 21:07:41 Sessions 1 Manual Loads 0 Difficulty Rogue Special Mode None Game No. 54 Rogue 54 Adventurer 0 Explorer 0 Win Type - Total 0 Types 0/0/0/0/0/0/0/0/0 Lore% 11 Gallery% 19 Achievement% 19 Wizard Run 0 Options --------- Layout 1 ASCII 0 Keyboard 0 Movement Arrows Keybinds 0 Fullscreen 1 Font 24/Smallcaps Map View 50x40 Zoom Use 0% Tactical HUD 1 Map Filters NONE Filters NONE Steam 1 RUN: 3c7a5f75-9059-4e4c-9e70-e4552d34739e